fUSD/lending_fUSD_20250609
["ID","MTS","AMOUNT","RATE_DAILY","PERIOD"]
[365101772,1749466261191,-480.0,0.00024657,2]
[365101773,1749466261201,-480.0,0.00024657,2]
[365101774,1749466261211,-480.0,0.00024657,2]
[365101775,1749466261221,-480.0,0.00024657,2]
[365101776,1749466261230,-480.0,0.00024657,2]
[365101777,1749466261240,-480.0,0.00024657,2]
[365101778,1749466261250,-476.46294187,0.00024657,2]
[365101779,1749466261259,-480.0,0.00024657,2]
[365101780,1749466261269,-480.0,0.00024657,2]
[365101781,1749466261279,-484.16521306,0.00024657,2]
[365101782,1749466261289,-481.83448273,0.00024657,2]
[365101783,1749466261299,-440.0,0.00024657,2]
[365101784,1749466261309,-480.0,0.00024657,2]
[365101785,1749466261319,-482.53056381,0.00024657,2]
[365101786,1749466261329,-929.92,0.00024657,2]
[365101787,1749466261338,-480.0,0.00024657,2]
[365101788,1749466261348,-475.52185997,0.00024657,2]
[365101789,1749466261358,-335.83070683,0.00024657,2]
[365101790,1749466261368,-465.60665637,0.00024657,2]
[365101791,1749466261378,-480.0,0.00024657,2]
[365101792,1749466261388,-480.0,0.00024657,2]
[365101793,1749466261397,-480.0,0.00024657,2]
[365101794,1749466261406,-480.0,0.00024657,2]
[365101795,1749466261416,-480.0,0.00024657,2]
[365101796,1749466261425,-534.91,0.00024657,2]
[365101797,1749466261434,-484.57424883,0.00024657,2]
[365101798,1749466261444,-480.0,0.00024657,2]
[365101799,1749466261454,-480.0,0.00024657,2]
[365101800,1749466261463,-1021.13,0.00024657,2]
[365101801,1749466261473,-480.0,0.00024657,2]
[365101802,1749466261482,-480.0,0.00024657,2]
[365101803,1749466261491,-480.0,0.00024657,2]
[365101804,1749466261501,-480.0,0.00024657,2]
[365101805,1749466261510,-721.83,0.00024657,2]
[365101806,1749466261520,-988.21,0.00024657,2]
[365101807,1749466261529,-480.0,0.00024657,2]
[365101808,1749466261539,-1267.92,0.00024657,2]
[365101809,1749466261549,-440.00088065,0.00024657,2]
[365101810,1749466261713,-480.0,0.00024657,2]
[365101811,1749466261741,-480.0,0.00024657,2]
[365101812,1749466261751,-480.0,0.00024657,2]
[365101813,1749466261760,-480.0,0.00024657,2]
[365101814,1749466261770,-464.56024671,0.00024657,2]
[365101815,1749466261780,-1301.38,0.00024657,2]
[365101816,1749466261790,-480.0,0.00024657,2]
[365101817,1749466261800,-1091.15,0.00024657,2]
[365101818,1749466261809,-480.0,0.00024657,2]
[365101819,1749466261819,-480.0,0.00024657,2]
[365101820,1749466261828,-480.0,0.00024657,2]
[365101821,1749466261837,-480.0,0.00024657,2]
[365101822,1749466261848,-480.0,0.00024657,2]
[365101823,1749466261858,-472.26232599,0.00024657,2]
[365101824,1749466261867,-480.0,0.00024657,2]
[365101825,1749466261876,-480.0,0.00024657,2]
[365101826,1749466261885,-480.0,0.00024657,2]
[365101827,1749466261895,-480.0,0.00024657,2]
[365101828,1749466261904,-480.0,0.00024657,2]
[365101829,1749466261914,-480.0,0.00024657,2]
[365101830,1749466261923,-480.0,0.00024657,2]
[365101831,1749466261933,-593.78,0.00024657,2]
[365101832,1749466261943,-480.0,0.00024657,2]
[365101833,1749466261952,-480.0,0.00024657,2]
[365101834,1749466261961,-480.0,0.00024657,2]
[365101835,1749466261971,-480.0,0.00024657,2]
[365101836,1749466261981,-480.0,0.00024657,2]
[365101837,1749466261990,-354.02726832,0.00024657,2]
[365101838,1749466262000,-444.06233087,0.00024657,2]
[365101839,1749466262010,-480.0,0.00024657,2]
[365101840,1749466262020,-2125.48,0.00024657,2]
[365101841,1749466262029,-440.0,0.00024657,2]
[365101842,1749466262039,-286.16568965,0.00024657,2]
[365101843,1749466262048,-480.0,0.00024657,2]
[365101844,1749466262058,-480.0,0.00024657,2]
[365101845,1749466262067,-480.0,0.00024657,2]
[365101846,1749466262076,-664.01,0.00024657,2]
[365101847,1749466262086,-480.0,0.00024657,2]
[365101848,1749466262096,-480.0,0.00024657,2]
[365101849,1749466262106,-480.0,0.00024657,2]
[365101850,1749466262116,-856.12,0.00024657,2]
[365101851,1749466262126,-480.0,0.00024657,2]
[365101852,1749466262135,-480.0,0.00024657,2]
[365101853,1749466262145,-480.0,0.00024657,2]
[365101854,1749466262154,-440.0,0.00024657,2]
[365101855,1749466262164,-460.79945134,0.00024657,2]
[365101856,1749466262174,-480.0,0.00024657,2]
[365101857,1749466262183,-480.0,0.00024657,2]
[365101858,1749466262193,-627.85,0.00024657,2]
[365101859,1749466262203,-480.0,0.00024657,2]
[365101860,1749466262212,-480.0,0.00024657,2]
[365101861,1749466262221,-480.0,0.00024657,2]
[365101862,1749466262230,-480.0,0.00024657,2]
[365101863,1749466262239,-474.73163768,0.00024657,2]
[365101864,1749466262249,-480.0,0.00024657,2]
[365101865,1749466262258,-480.0,0.00024657,2]
[365101866,1749466262268,-480.0,0.00024657,2]
[365101867,1749466262277,-480.0,0.00024657,2]
[365101868,1749466262287,-691.28,0.00024657,2]
[365101869,1749466262297,-480.0,0.00024657,2]
[365101870,1749466262306,-569.32,0.00024657,2]
[365101871,1749466262316,-394.41908057,0.00024657,2]
[365101872,1749466262326,-616.9,0.00024657,2]
[365101873,1749466262335,-706.24,0.00024657,2]
[365101874,1749466262345,-480.0,0.00024657,2]
[365101875,1749466262355,-480.0,0.00024657,2]
[365101876,1749466262365,-480.0,0.00024657,2]
[365101877,1749466262374,-1467.86,0.00024657,2]
[365101878,1749466262383,-480.0,0.00024657,2]
[365101879,1749466262393,-480.0,0.00024657,2]
[365101880,1749466262402,-480.0,0.00024657,2]
[365101881,1749466262411,-480.0,0.00024657,2]
[365101882,1749466262421,-434.11373663,0.00024657,2]
[365101883,1749466262431,-969.56,0.00024657,2]
[365101884,1749466262440,-480.0,0.00024657,2]
[365101885,1749466262450,-852.82,0.00024657,2]
[365101886,1749466262459,-199.60029558,0.00024657,2]
[365101887,1749466262468,-480.0,0.00024657,2]
[365101888,1749466262478,-480.0,0.00024657,2]
[365101889,1749466262487,-471.7457715,0.00024657,2]
[365101890,1749466262497,-463.29720452,0.00024657,2]
[365101891,1749466262507,-483.48996778,0.00024657,2]
[365101892,1749466262516,-172.66743277,0.00024657,2]
[365101893,1749466262525,-480.0,0.00024657,2]
[365101894,1749466262534,-480.0,0.00024657,2]
[365101895,1749466262545,-480.0,0.00024657,2]
[365101896,1749466262556,-1250.18,0.00024657,2]
[365101897,1749466262567,-480.0,0.00024657,2]
[365101898,1749466262576,-152.23457706,0.00024657,2]
[365101899,1749466262585,-899.05,0.00024657,2]
[365101900,1749466262595,-480.0,0.00024657,2]
[365101901,1749466262604,-480.0,0.00024657,2]
[365101902,1749466262613,-480.0,0.00024657,2]
[365101903,1749466262623,-454.83599662,0.00024657,2]
[365101904,1749466262633,-554.6,0.00024657,2]
[365101905,1749466262642,-480.0,0.00024657,2]
[365101906,1749466262651,-984.21,0.00024657,2]
[365101907,1749466262660,-860.12,0.00024657,2]
[365101908,1749466262670,-480.0,0.00024657,2]
[365101909,1749466262679,-480.0,0.00024657,2]
[365101910,1749466262689,-480.0,0.00024657,2]
[365101911,1749466262698,-480.0,0.00024657,2]
[365101912,1749466262707,-480.0,0.00024657,2]
[365101913,1749466262717,-480.0,0.00024657,2]
[365101914,1749466262726,-472.99877706,0.00024657,2]
[365101915,1749466262735,-480.0,0.00024657,2]
[365101916,1749466262744,-480.0,0.00024657,2]
[365101917,1749466262753,-1073.59,0.00024657,2]
[365101918,1749466262763,-680.21,0.00024657,2]
[365101919,1749466262772,-440.0,0.00024657,2]
[365101920,1749466262781,-480.0,0.00024657,2]
[365101921,1749466262790,-465.65283659,0.00024657,2]
[365101922,1749466262800,-480.0,0.00024657,2]
[365101923,1749466262809,-480.0,0.00024657,2]
[365101924,1749466262819,-480.0,0.00024657,2]
[365101925,1749466262828,-1360.4,0.00024657,2]
[365101926,1749466262838,-480.0,0.00024657,2]
[365101927,1749466262847,-544.70409553,0.00024657,2]
[365101928,1749466262858,-480.0,0.00024657,2]
[365101929,1749466262868,-480.0,0.00024657,2]
[365101930,1749466262877,-494.84,0.00024657,2]
[365101931,1749466262887,-480.0,0.00024657,2]
[365101932,1749466262897,-468.949945,0.00024657,2]
[365101933,1749466262906,-480.0,0.00024657,2]
[365101934,1749466262915,-480.0,0.00024657,2]
[365101935,1749466262925,-483.29393376,0.00024657,2]
[365101936,1749466262934,-480.0,0.00024657,2]
[365101937,1749466262944,-480.0,0.00024657,2]
[365101938,1749466262953,-722.18,0.00024657,2]
[365101939,1749466262963,-480.0,0.00024657,2]
[365101940,1749466262972,-556.85,0.00024657,2]
[365101941,1749466262981,-480.0,0.00024657,2]
[365101942,1749466262991,-480.0,0.00024657,2]
[365101943,1749466262999,-480.0,0.00024657,2]
[365101944,1749466263009,-480.0,0.00024657,2]
[365101945,1749466263019,-805.54,0.00024657,2]
[365101946,1749466263029,-610.12,0.00024657,2]
[365101947,1749466263038,-480.0,0.00024657,2]
[365101948,1749466263049,-480.0,0.00024657,2]
[365101949,1749466263059,-480.0,0.00024657,2]
[365101950,1749466263069,-707.31,0.00024657,2]
[365101951,1749466263079,-934.38,0.00024657,2]
[365101952,1749466263089,-480.0,0.00024657,2]
[365101953,1749466263098,-480.0,0.00024657,2]
[365101954,1749466263108,-550.8,0.00024657,2]
[365101955,1749466263118,-947.54,0.00024657,2]
[365101956,1749466263129,-480.0,0.00024657,2]
[365101957,1749466263139,-1218.85,0.00024657,2]
[365101958,1749466263149,-587.78,0.00024657,2]
[365101959,1749466263159,-480.0,0.00024657,2]
[365101960,1749466263169,-480.0,0.00024657,2]
[365101961,1749466263179,-480.0,0.00024657,2]
[365101962,1749466263190,-469.64242432,0.00024657,2]
[365101963,1749466263200,-480.0,0.00024657,2]
[365101964,1749466263210,-480.0,0.00024657,2]
[365101965,1749466263219,-586.54,0.00024657,2]
[365101966,1749466263229,-604.92,0.00024657,2]
[365101967,1749466263238,-480.0,0.00024657,2]
[365101968,1749466263248,-505.67,0.00024657,2]
[365101969,1749466263258,-496.73,0.00024657,2]
[365101970,1749466263267,-480.0,0.00024657,2]
[365101971,1749466263276,-1956.09,0.00024657,2]
[365101972,1749466263285,-480.0,0.00024657,2]
[365101973,1749466263295,-230.28593692,0.00024657,2]
[365101974,1749466263305,-480.0,0.00024657,2]
[365101975,1749466263314,-480.0,0.00024657,2]
[365101976,1749466263323,-480.0,0.00024657,2]
[365101977,1749466263333,-618.85,0.00024657,2]
[365101978,1749466263343,-480.0,0.00024657,2]
[365101979,1749466263354,-364.2731523,0.00024657,2]
[365101980,1749466263363,-480.0,0.00024657,2]
[365101981,1749466263373,-490.09,0.00024657,2]
[365101982,1749466263384,-413.47910582,0.00024657,2]
[365101983,1749466263393,-480.0,0.00024657,2]
[365101984,1749466263403,-1096.76,0.00024657,2]
[365101985,1749466263412,-480.0,0.00024657,2]
[365101986,1749466263421,-750.02,0.00024657,2]
[365101987,1749466263431,-1441.64,0.00024657,2]
[365101988,1749466263440,-480.0,0.00024657,2]
[365101989,1749466263450,-464.85203231,0.00024657,2]
[365101990,1749466263461,-480.0,0.00024657,2]
[365101991,1749466263471,-674.95,0.00024657,2]
[365101992,1749466263480,-460.0,0.00024657,2]
[365101993,1749466263489,-480.0,0.00024657,2]
[365101994,1749466263500,-480.0,0.00024657,2]
[365101995,1749466263510,-480.0,0.00024657,2]
[365101996,1749466263521,-519.54,0.00024657,2]
[365101997,1749466263531,-565.04,0.00024657,2]
[365101998,1749466263541,-480.0,0.00024657,2]
[365101999,1749466263553,-480.0,0.00024657,2]
[365102000,1749466263566,-480.0,0.00024657,2]
[365102001,1749466263577,-460.0,0.00024657,2]
[365102002,1749466263587,-572.04,0.00024657,2]
[365102003,1749466263598,-505.27,0.00024657,2]
[365102004,1749466263609,-1988.72,0.00024657,2]
[365102005,1749466263619,-480.0,0.00024657,2]
[365102006,1749466263630,-1686.83,0.00024657,2]
[365102007,1749466263642,-460.26838591,0.00024657,2]
[365102008,1749466263653,-460.0,0.00024657,2]
[365102009,1749466263662,-560.88072556,0.00024657,2]
[365102010,1749466263672,-480.0,0.00024657,2]
[365102011,1749466263682,-1528.72,0.00024657,2]
[365102012,1749466263692,-513.03,0.00024657,2]
[365102013,1749466263702,-480.0,0.00024657,2]
[365102014,1749466263712,-950.22,0.00024657,2]
[365102015,1749466263723,-480.0,0.00024657,2]
[365102016,1749466263733,-480.0,0.00024657,2]
[365102017,1749466263742,-480.0,0.00024657,2]
[365102018,1749466263753,-480.0,0.00024657,2]
[365102019,1749466263764,-723.57,0.00024657,2]
[365102020,1749466263774,-1022.15,0.00024657,2]
[365102021,1749466263785,-480.0,0.00024657,2]
[365102022,1749466263795,-480.0,0.00024657,2]
[365102023,1749466263805,-862.84,0.00024657,2]
[365102024,1749466263815,-300.0,0.00024657,2]
[365102025,1749466263825,-480.0,0.00024657,2]
[365102026,1749466263834,-480.0,0.00024657,2]
[365102027,1749466263844,-2098.83,0.00024657,2]
[365102028,1749466263854,-482.62,0.00024657,2]
[365102029,1749466263864,-849.47,0.00024657,2]
[365102030,1749466263874,-480.0,0.00024657,2]
[365102031,1749466263884,-300.0,0.00024657,2]
[365102032,1749466263894,-480.0,0.00024657,2]
[365102033,1749466263904,-1205.43,0.00024657,2]
[365102034,1749466263914,-665.76,0.00024657,2]
[365102035,1749466263924,-480.0,0.00024657,2]
[365102036,1749466263934,-877.8,0.00024657,2]
[365102037,1749466263945,-539.36,0.00024657,2]
[365102038,1749466263955,-480.0,0.00024657,2]
[365102039,1749466263965,-152.32450229,0.00024657,2]
[365102040,1749466263976,-1239.04,0.00024657,2]
[365102041,1749466263986,-480.0,0.00024657,2]
[365102042,1749466263995,-251.75829259,0.00024657,2]
[365102043,1749466264006,-480.0,0.00024657,2]
[365102044,1749466264016,-1442.33,0.00024657,2]
[365102045,1749466264026,-480.0,0.00024657,2]
[365102046,1749466264036,-761.03,0.00024657,2]
[365102047,1749466264046,-535.44,0.00024657,2]
[365102048,1749466264056,-480.0,0.00024657,2]
[365102049,1749466264066,-480.0,0.00024657,2]
[365102050,1749466264076,-480.0,0.00024657,2]
[365102051,1749466264085,-480.0,0.00024657,2]
[365102052,1749466264095,-1581.99,0.00024657,2]
[365102053,1749466264106,-480.0,0.00024657,2]
[365102054,1749466264116,-480.0,0.00024657,2]
[365102055,1749466264127,-480.0,0.00024657,2]
[365102056,1749466264137,-480.0,0.00024657,2]
[365102057,1749466264147,-480.0,0.00024657,2]
[365102058,1749466264156,-517.15,0.00024657,2]
[365102059,1749466264166,-643.28,0.00024657,2]
[365102060,1749466264176,-546.31471662,0.00024657,2]
[365102061,1749466264186,-480.0,0.00024657,2]
[365102062,1749466264195,-480.0,0.00024657,2]
[365102063,1749466264205,-480.0,0.00024657,2]
[365102064,1749466264215,-480.0,0.00024657,2]
[365102065,1749466264224,-480.0,0.00024657,2]
[365102066,1749466264234,-480.0,0.00024657,2]
[365102067,1749466264244,-695.67,0.00024657,2]
[365102068,1749466264255,-480.0,0.00024657,2]
[365102069,1749466264265,-480.0,0.00024657,2]
[365102070,1749466264274,-480.0,0.00024657,2]
[365102071,1749466264283,-480.0,0.00024657,2]
[365102072,1749466264293,-480.0,0.00024657,2]
[365102073,1749466264303,-480.0,0.00024657,2]
[365102074,1749466264312,-480.0,0.00024657,2]
[365102075,1749466264321,-480.0,0.00024657,2]
[365102076,1749466264330,-1004.09,0.00024657,2]
[365102077,1749466264339,-1137.84,0.00024657,2]
[365102078,1749466264348,-480.0,0.00024657,2]
[365102079,1749466264360,-480.0,0.00024657,2]
[365102080,1749466264370,-500.0,0.00024657,2]
[365102081,1749466264380,-480.0,0.00024657,2]
[365102082,1749466264390,-1468.79,0.00024657,2]
[365102083,1749466264400,-480.0,0.00024657,2]
[365102084,1749466264410,-538.35,0.00024657,2]
[365102085,1749466264419,-480.0,0.00024657,2]
[365102086,1749466264429,-480.0,0.00024657,2]
[365102087,1749466264439,-1343.11,0.00024657,2]
[365102088,1749466264448,-480.0,0.00024657,2]
[365102089,1749466264458,-480.0,0.00024657,2]
[365102090,1749466264468,-480.0,0.00024657,2]
[365102091,1749466264477,-480.0,0.00024657,2]
[365102092,1749466264487,-480.0,0.00024657,2]
[365102093,1749466264497,-1685.73,0.00024657,2]
[365102094,1749466264506,-736.22,0.00024657,2]
[365102095,1749466264515,-984.78,0.00024657,2]
[365102096,1749466264524,-480.0,0.00024657,2]
[365102097,1749466264533,-785.08,0.00024657,2]
[365102098,1749466264543,-480.0,0.00024657,2]
[365102099,1749466264554,-480.0,0.00024657,2]
[365102100,1749466264565,-480.0,0.00024657,2]
[365102101,1749466264574,-480.0,0.00024657,2]
[365102102,1749466264583,-480.0,0.00024657,2]
[365102103,1749466264593,-480.0,0.00024657,2]
[365102104,1749466264602,-1147.91,0.00024657,2]
[365102105,1749466264612,-480.0,0.00024657,2]
[365102106,1749466264621,-480.0,0.00024657,2]
[365102107,1749466264630,-480.0,0.00024657,2]
[365102108,1749466264640,-480.0,0.00024657,2]
[365102109,1749466264650,-480.0,0.00024657,2]
[365102110,1749466264659,-466.56905724,0.00024657,2]
[365102111,1749466264668,-480.0,0.00024657,2]
[365102112,1749466264677,-480.0,0.00024657,2]
[365102113,1749466264686,-460.0,0.00024657,2]
[365102114,1749466264696,-1731.15,0.00024657,2]
[365102115,1749466264705,-480.0,0.00024657,2]
[365102116,1749466264714,-480.0,0.00024657,2]
[365102117,1749466264724,-480.0,0.00024657,2]
[365102118,1749466264733,-480.0,0.00024657,2]
[365102119,1749466264742,-1622.22,0.00024657,2]
[365102120,1749466264751,-480.0,0.00024657,2]
[365102121,1749466264760,-480.0,0.00024657,2]
[365102122,1749466264769,-1905.63,0.00024657,2]
[365102123,1749466264779,-480.0,0.00024657,2]
[365102124,1749466264788,-264.02932864,0.00024657,2]
[365102125,1749466264798,-480.0,0.00024657,2]
[365102126,1749466264807,-480.0,0.00024657,2]
[365102127,1749466264817,-480.0,0.00024657,2]
[365102128,1749466264826,-480.0,0.00024657,2]
[365102129,1749466264835,-480.0,0.00024657,2]
[365102130,1749466264844,-480.0,0.00024657,2]
[365102131,1749466264854,-264.8104788,0.00024657,2]
[365102132,1749466264864,-752.17,0.00024657,2]
[365102133,1749466264873,-435.65952385,0.00024657,2]
[365102134,1749466264883,-480.0,0.00024657,2]
[365102135,1749466264892,-480.0,0.00024657,2]
[365102136,1749466264901,-480.0,0.00024657,2]
[365102137,1749466264910,-480.0,0.00024657,2]
[365102138,1749466264919,-480.0,0.00024657,2]
[365102139,1749466264928,-480.0,0.00024657,2]
[365102140,1749466264938,-250.0,0.00024657,2]
[365102141,1749466264948,-472.15611086,0.00024657,2]
[365102142,1749466264958,-480.0,0.00024657,2]
[365102143,1749466264967,-467.22014676,0.00024657,2]
[365102144,1749466264976,-480.0,0.00024657,2]
[365102145,1749466264986,-480.0,0.00024657,2]
[365102146,1749466264995,-948.03,0.00024657,2]
[365102147,1749466265004,-480.0,0.00024657,2]
[365102148,1749466265013,-480.0,0.00024657,2]
[365102149,1749466265023,-480.0,0.00024657,2]
[365102150,1749466265033,-480.0,0.00024657,2]
[365102151,1749466265044,-480.0,0.00024657,2]
[365102152,1749466265054,-480.0,0.00024657,2]
[365102153,1749466265064,-480.0,0.00024657,2]
[365102154,1749466265073,-202.74528566,0.00024657,2]
[365102155,1749466265083,-480.0,0.00024657,2]
[365102156,1749466265093,-252.33685086,0.00024657,2]
[365102157,1749466265104,-480.0,0.00024657,2]
[365102158,1749466265113,-480.0,0.00024657,2]
[365102159,1749466265122,-480.0,0.00024657,2]
[365102160,1749466265132,-480.0,0.00024657,2]
[365102161,1749466265141,-468.18414687,0.00024657,2]
[365102162,1749466265151,-879.54,0.00024657,2]
[365102163,1749466265161,-480.0,0.00024657,2]
[365102164,1749466265170,-781.48,0.00024657,2]
[365102165,1749466265179,-774.82,0.00024657,2]
[365102166,1749466265360,-601.8,0.00024657,2]
[365102167,1749466265371,-480.0,0.00024657,2]
[365102168,1749466265380,-480.0,0.00024657,2]
[365102169,1749466265390,-471.63697672,0.00024657,2]
[365102170,1749466265400,-480.0,0.00024657,2]
[365102171,1749466265410,-480.0,0.00024657,2]
[365102172,1749466265419,-480.0,0.00024657,2]
[365102173,1749466265429,-480.0,0.00024657,2]
[365102174,1749466265438,-480.0,0.00024657,2]
[365102175,1749466265448,-480.0,0.00024657,2]
[365102176,1749466265457,-480.0,0.00024657,2]
[365102177,1749466265466,-480.0,0.00024657,2]
[365102178,1749466265476,-2016.63,0.00024657,2]
[365102179,1749466265486,-480.0,0.00024657,2]
[365102180,1749466265495,-1887.08,0.00024657,2]
[365102181,1749466265505,-611.81,0.00024657,2]
[365102182,1749466265515,-480.0,0.00024657,2]
[365102183,1749466265525,-480.0,0.00024657,2]
[365102184,1749466265534,-332.13315066,0.00024657,2]
[365102185,1749466265543,-480.0,0.00024657,2]
[365102186,1749466265553,-853.62,0.00024657,2]
[365102187,1749466265565,-392.3645859,0.00024657,2]
[365102188,1749466265575,-403.976827,0.00024657,2]
[365102189,1749466265584,-229.65088964,0.00024657,2]
[365102190,1749466265593,-1543.94,0.00024657,2]
[365102191,1749466265603,-480.0,0.00024657,2]
[365102192,1749466265613,-1456.22,0.00024657,2]
[365102193,1749466265622,-378.6754245,0.00024657,2]
[365102194,1749466265632,-480.0,0.00024657,2]
[365102195,1749466265642,-480.0,0.00024657,2]
[365102196,1749466265652,-480.0,0.00024657,2]
[365102197,1749466265661,-480.0,0.00024657,2]
[365102198,1749466265671,-480.0,0.00024657,2]
[365102199,1749466265680,-1165.32,0.00024657,2]
[365102200,1749466265689,-480.0,0.00024657,2]
[365102201,1749466265698,-480.0,0.00024657,2]
[365102202,1749466265707,-480.0,0.00024657,2]
[365102203,1749466265717,-480.0,0.00024657,2]
[365102204,1749466265727,-480.0,0.00024657,2]
[365102205,1749466265736,-483.26544929,0.00024657,2]
[365102206,1749466265745,-480.0,0.00024657,2]
[365102207,1749466265755,-480.0,0.00024657,2]
[365102208,1749466265764,-480.0,0.00024657,2]
[365102209,1749466265774,-566.15906043,0.00024657,2]
[365102210,1749466265784,-505.29,0.00024657,2]
[365102211,1749466265793,-480.0,0.00024657,2]
[365102212,1749466265803,-480.0,0.00024657,2]
[365102213,1749466265812,-652.14,0.00024657,2]
[365102214,1749466265822,-1000.0,0.00024657,2]
[365102215,1749466265831,-702.18,0.00024657,2]
[365102216,1749466265841,-460.0,0.00024657,2]
[365102217,1749466265850,-508.34,0.00024657,2]
[365102218,1749466265861,-704.56,0.00024657,2]
[365102219,1749466265870,-480.0,0.00024657,2]
[365102220,1749466265880,-445.68785977,0.00024657,2]
[365102221,1749466265889,-480.0,0.00024657,2]
[365102222,1749466265898,-480.0,0.00024657,2]
[365102223,1749466265908,-886.47,0.00024657,2]
[365102224,1749466265917,-480.0,0.00024657,2]
[365102225,1749466265927,-473.44328878,0.00024657,2]
[365102226,1749466265936,-493.03550905,0.00024657,2]
[365102227,1749466265946,-1780.84,0.00024657,2]
[365102228,1749466265955,-788.12,0.00024657,2]
[365102229,1749466265965,-480.0,0.00024657,2]
[365102230,1749466265974,-480.0,0.00024657,2]
[365102231,1749466265983,-691.04,0.00024657,2]
[365102232,1749466265993,-480.0,0.00024657,2]
[365102233,1749466266003,-466.64735643,0.00024657,2]
[365102234,1749466266012,-480.0,0.00024657,2]
[365102235,1749466266022,-480.0,0.00024657,2]
[365102236,1749466266032,-542.48,0.00024657,2]
[365102237,1749466266042,-480.0,0.00024657,2]
[365102238,1749466266051,-480.0,0.00024657,2]
[365102239,1749466266060,-964.13,0.00024657,2]
[365102240,1749466266070,-948.79,0.00024657,2]
[365102241,1749466266079,-888.57,0.00024657,2]
[365102242,1749466266089,-480.0,0.00024657,2]
[365102243,1749466266099,-1636.4,0.00024657,2]
[365102244,1749466266110,-504.64,0.00024657,2]
[365102245,1749466266120,-2361.54,0.00024657,2]
[365102246,1749466266129,-252.53933294,0.00024657,2]
[365102247,1749466266139,-480.0,0.00024657,2]
[365102248,1749466266148,-480.0,0.00024657,2]
[365102249,1749466266158,-693.8,0.00024657,2]
[365102250,1749466266168,-480.0,0.00024657,2]
[365102251,1749466266177,-480.0,0.00024657,2]
[365102252,1749466266187,-647.25,0.00024657,2]
[365102253,1749466266196,-634.65,0.00024657,2]
[365102254,1749466266206,-2310.21,0.00024657,2]
[365102255,1749466266215,-470.36658162,0.00024657,2]
[365102256,1749466266224,-886.64,0.00024657,2]
[365102257,1749466266233,-482.82610311,0.00024657,2]
[365102258,1749466266242,-1125.57,0.00024657,2]
[365102259,1749466266251,-480.0,0.00024657,2]
[365102260,1749466266261,-480.0,0.00024657,2]
[365102261,1749466266270,-480.0,0.00024657,2]
[365102262,1749466266279,-4038.83,0.00024657,2]
[365102263,1749466266289,-503.59,0.00024657,2]
[365102264,1749466266299,-480.0,0.00024657,2]
[365102265,1749466266308,-480.0,0.00024657,2]
[365102266,1749466266318,-480.0,0.00024657,2]
[365102267,1749466266327,-480.0,0.00024657,2]
[365102268,1749466266336,-4660.31,0.00024657,2]
[365102269,1749466266345,-474.61358872,0.00024657,2]
[365102270,1749466266355,-281.62006733,0.00024657,2]
[365102271,1749466266365,-367.04767916,0.00024657,2]